bitfinex-derivatives/quotes_SOLF0:USTF0_20260304
["timestamp","ask_amount","ask_price","bid_price","bid_amount"]
[1772622309638,12.89846318,90.359,90.291,13.41926781]
[1772622309944,12.89846318,90.349,90.28,2.27857072]
[1772622311845,12.89846318,90.349,90.28,15.69783853]
[1772622312144,12.89846318,90.349,90.29,2.27857072]
[1772622312547,12.89846318,90.349,90.28,13.41926781]
[1772622316550,12.89846318,90.349,90.251,13.41926781]
[1772622319455,12.89846318,90.349,90.265,12.85862107]
[1772622321055,12.89846318,90.349,90.24,13.66447014]
[1772622321056,12.89846318,90.349,90.241,12.85862107]
[1772622321357,12.95154341,90.339,90.241,12.85862107]
[1772622321656,12.95154341,90.336,90.241,12.85862107]
[1772622324551,12.95154341,90.336,90.25,5.43571474]
[1772622329158,12.95154341,90.336,90.27,5.43571474]
[1772622329854,12.95154341,90.336,90.25,5.43571474]
[1772622330457,12.95154341,90.336,90.251,12.4297135]
[1772622333368,11.09,90.359,90.24,5.43746048]
[1772622334570,21.26509499,90.358,90.242,13.66447014]
[1772622335870,10.17509499,90.353,90.24,5.43746048]
[1772622337268,10.17509499,90.341,90.225,13.66447014]
[1772622337470,10.17509499,90.341,90.224,13.66447014]
[1772622337864,10.17509499,90.34,90.224,13.66447014]
[1772622338169,10.17509499,90.345,90.228,13.66447014]
[1772622338469,10.17509499,90.358,90.242,13.66447014]
[1772622339363,10.17509499,90.358,90.243,13.66447014]
[1772622340268,5.43746048,90.36,90.24,5.43746048]
[1772622340269,10.17509499,90.357,90.244,13.66447014]
[1772622340657,10.17509499,90.357,90.243,13.66447014]
[1772622341368,10.17509499,90.356,90.243,13.66447014]
[1772622341965,10.17509499,90.357,90.245,13.66447014]
[1772622342365,10.17509499,90.356,90.245,13.66447014]
[1772622343070,11.08,90.355,90.245,13.66447014]
[1772622343271,12.15371928,90.354,90.246,12.4297135]
[1772622344869,12.15371928,90.352,90.246,12.4297135]
[1772622345765,12.15371928,90.341,90.246,12.4297135]
[1772622345965,12.15371928,90.338,90.246,12.4297135]
[1772622346165,12.15371928,90.327,90.246,12.4297135]
[1772622346369,12.15371928,90.319,90.246,12.4297135]
[1772622346572,12.15371928,90.317,90.246,12.4297135]
[1772622347472,10.17509499,90.315,90.246,12.4297135]
[1772622347673,12.15371928,90.314,90.246,12.4297135]
[1772622351073,13.21670365,90.344,90.246,12.4297135]
[1772622352973,10.17509499,90.343,90.246,12.4297135]
[1772622353271,10.17509499,90.336,90.246,12.4297135]
[1772622353471,13.21670365,90.33,90.246,12.4297135]
[1772622356582,13.21670365,90.319,90.251,13.99053492]
[1772622361185,13.21670365,90.319,90.261,13.99053492]
[1772622363883,13.21670365,90.319,90.28,2.28469596]
[1772622364092,13.21670365,90.319,90.29,2.28469596]
[1772622364593,13.21670365,90.319,90.261,13.99053492]
[1772622364886,13.21670365,90.319,90.29,2.28469596]
[1772622365190,13.21670365,90.319,90.28,2.28469596]
[1772622365789,13.21670365,90.319,90.27,2.28469596]
[1772622367185,2.28469596,90.34,90.27,2.28469596]
[1772622368093,2.28469596,90.33,90.26,2.28469596]
[1772622368593,2.28469596,90.32,90.25,2.28469596]
[1772622371292,13.21670365,90.319,90.251,13.99053492]
[1772622371689,13.21670365,90.319,90.26,2.28469596]
[1772622371893,13.21670365,90.319,90.261,13.99053492]
[1772622378794,12.07048165,90.309,90.261,13.99053492]
[1772622381308,12.07048165,90.299,90.248,12.7676191]
[1772622385213,12.07048165,90.299,90.251,11.40582155]
[1772622386010,2.28469596,90.29,90.251,11.40582155]
[1772622386310,14.38126703,90.29,90.251,11.40582155]
[1772622388611,12.09657107,90.29,90.251,11.40582155]
[1772622391516,14.38126703,90.29,90.251,11.40582155]
[1772622392109,12.09657107,90.299,90.251,11.40582155]
[1772622396820,2.28573246,90.29,90.239,11.40582155]
[1772622397021,12.09657107,90.289,90.239,11.40582155]
[1772622397417,12.09657107,90.269,90.204,11.40582155]
[1772622397619,12.09657107,90.269,90.211,11.40582155]
[1772622402218,12.09657107,90.289,90.221,11.40582155]
[1772622404021,12.09657107,90.269,90.221,11.40582155]
[1772622404620,12.09657107,90.259,90.208,11.40582155]
[1772622404818,12.09657107,90.249,90.208,11.40582155]
[1772622405221,12.09657107,90.249,90.181,11.40582155]
[1772622405918,12.09657107,90.239,90.181,11.40582155]
[1772622406618,12.09657107,90.229,90.181,11.40582155]
[1772622408428,12.09657107,90.229,90.114,20.51278275]
[1772622408429,11.74397097,90.219,90.161,12.23148363]
[1772622408622,11.74397097,90.209,90.161,12.23148363]
[1772622409922,2.28573246,90.22,90.161,12.23148363]
[1772622410124,14.02970343,90.22,90.161,12.23148363]
[1772622411630,11.74397097,90.237,90.171,12.23148363]
[1772622411930,2.28573246,90.23,90.171,12.23148363]
[1772622412332,14.02970343,90.25,90.191,12.23148363]
[1772622415525,11.74397097,90.25,90.191,12.23148363]
[1772622417132,14.02970343,90.25,90.191,12.23148363]
[1772622417926,14.02970343,90.26,90.201,12.23148363]
[1772622419628,11.74397097,90.249,90.201,12.23148363]
[1772622419828,2.28573246,90.23,90.171,12.23148363]
[1772622420023,11.74397097,90.239,90.181,12.23148363]
[1772622420224,2.28573246,90.25,90.19,2.28573246]
[1772622420429,2.28573246,90.25,90.191,12.23148363]
[1772622421126,2.28573246,90.26,90.201,12.23148363]
[1772622421325,11.74397097,90.266,90.201,12.23148363]
[1772622422233,11.74397097,90.266,90.211,12.23148363]
[1772622423632,11.74397097,90.279,90.221,12.23148363]
[1772622423822,11.74397097,90.259,90.201,12.23148363]
[1772622424234,2.28573246,90.27,90.211,12.23148363]
[1772622424435,14.02970343,90.27,90.211,12.23148363]
[1772622425431,11.74397097,90.259,90.211,12.23148363]
[1772622432531,11.74397097,90.272,90.211,12.23148363]
[1772622433938,2.28573246,90.27,90.211,12.23148363]
[1772622434140,14.02970343,90.27,90.211,12.23148363]
[1772622437437,11.74397097,90.27,90.211,12.23148363]
[1772622437833,14.02970343,90.27,90.211,12.23148363]
[1772622439840,14.19326606,90.28,90.211,12.23148363]
[1772622443045,11.44992615,90.269,90.211,12.23148363]
[1772622443942,11.44992615,90.259,90.211,12.23148363]
[1772622445048,11.44992615,90.272,90.211,12.23148363]
[1772622445549,11.44992615,90.269,90.211,12.23148363]
[1772622446048,11.44992615,90.249,90.199,12.49958738]
[1772622450948,11.44992615,90.239,90.171,12.49958738]
[1772622451349,11.44992615,90.239,90.181,12.49958738]
[1772622452045,11.44992615,90.239,90.191,12.49958738]
[1772622452248,11.44992615,90.253,90.191,12.49958738]
[1772622453450,1.92905726,90.278,90.111,176.0]
[1772622453451,13.73565861,90.23,90.171,12.49958738]
[1772622453847,11.44992615,90.244,90.191,12.49958738]
[1772622454053,11.44992615,90.257,90.191,12.49958738]
[1772622456555,11.44992615,90.249,90.191,12.49958738]
[1772622456755,11.44992615,90.239,90.191,12.49958738]
[1772622458557,11.44992615,90.239,90.18,2.28760464]
[1772622458558,13.73753079,90.23,90.171,12.49958738]
[1772622458751,11.44992615,90.23,90.171,12.49958738]
[1772622459349,13.73753079,90.23,90.171,12.49958738]
[1772622461358,11.44992615,90.23,90.171,12.49958738]
[1772622462554,11.44992615,90.209,90.156,12.49958738]
[1772622464258,13.73753079,90.19,90.131,12.49958738]
[1772622464461,13.73753079,90.19,90.094,176.0]
[1772622464462,13.73753079,90.18,90.12,2.28760464]
[1772622464659,13.73753079,90.18,90.116,12.49958738]
[1772622464855,11.44992615,90.169,90.116,12.49958738]
[1772622465658,2.28760464,90.16,90.116,12.49958738]
[1772622465855,11.44992615,90.159,90.101,12.49958738]
[1772622466053,2.28760464,90.15,90.101,12.49958738]
[1772622466461,11.44992615,90.149,90.101,12.49958738]
[1772622468562,12.19173684,90.159,90.101,12.49958738]
[1772622468763,2.28760464,90.15,90.101,12.49958738]
[1772622469165,12.19173684,90.149,90.101,12.49958738]
[1772622470063,2.28760464,90.14,90.101,12.49958738]
[1772622470266,12.19173684,90.149,90.101,12.49958738]
[1772622470563,12.19173684,90.139,90.081,12.57175342]
[1772622471264,12.19173684,90.149,90.091,12.57175342]
[1772622471563,2.28760464,90.14,90.091,12.57175342]
[1772622471757,14.47934148,90.14,90.076,12.57175342]
[1772622473364,12.19173684,90.129,90.076,12.57175342]
[1772622474564,12.19173684,90.149,90.081,12.57175342]
[1772622476163,12.19173684,90.149,90.09,14.85935806]
[1772622476360,12.19173684,90.159,90.073,12.57175342]
[1772622476559,2.28760464,90.15,90.086,12.57175342]
[1772622476764,12.19173684,90.149,90.086,12.57175342]
[1772622477372,12.19173684,90.14,90.086,12.57175342]
[1772622477571,14.47934148,90.14,90.086,12.57175342]
[1772622479571,1.93108041,90.182,90.1,2.28760464]
[1772622479572,12.19173684,90.159,90.1,2.28760464]
[1772622479869,14.47934148,90.15,90.098,12.57175342]
[1772622480071,12.19173684,90.15,90.098,12.57175342]
[1772622480270,14.47934148,90.15,90.098,12.57175342]
[1772622480471,12.19173684,90.139,90.081,12.57175342]
[1772622481166,12.19173684,90.139,90.091,12.57175342]
[1772622481365,12.19173684,90.139,90.04,1.93141265]
[1772622481366,12.19173684,90.159,90.101,12.57175342]
[1772622482464,12.19173684,90.159,90.111,12.57175342]
[1772622483163,12.19173684,90.174,90.13,14.85935806]
[1772622483471,12.19173684,90.189,90.13,14.85935806]
[1772622483870,12.19173684,90.179,90.116,12.57175342]
[1772622484073,12.19173684,90.169,90.116,12.57175342]
[1772622484376,12.19173684,90.169,90.101,12.57175342]
[1772622487974,12.19173684,90.169,90.11,2.28760464]
[1772622488169,12.19173684,90.169,90.11,14.85935806]
[1772622488870,12.19173684,90.169,90.11,12.57175342]
[1772622489466,11.08,90.138,90.074,12.57175342]
[1772622489669,11.08,90.136,90.091,12.57175342]
[1772622490775,12.19173684,90.148,90.091,12.57175342]
[1772622491777,12.19173684,90.163,90.101,12.57175342]
[1772622492177,12.19173684,90.163,90.11,14.85935806]
[1772622492777,12.19173684,90.163,90.11,12.57175342]
[1772622493077,12.19173684,90.149,90.087,12.57175342]
[1772622493473,14.47934148,90.14,90.087,12.57175342]
[1772622494374,12.19173684,90.14,90.087,12.57175342]
[1772622498574,14.47934148,90.14,90.087,12.57175342]
[1772622501188,12.19173684,90.14,90.087,12.57175342]
[1772622504586,14.47934148,90.14,90.087,12.57175342]
[1772622504884,12.18340573,90.129,90.069,12.592297]
[1772622506585,2.28760464,90.12,90.051,12.592297]
[1772622506786,2.28760464,90.12,90.061,12.592297]
[1772622506787,14.47101037,90.12,90.061,12.592297]
[1772622508088,12.18340573,90.12,90.061,12.592297]
[1772622508283,14.47101037,90.12,90.061,12.592297]
[1772622508481,12.18340573,90.109,90.061,12.592297]
[1772622508686,12.18340573,90.109,90.047,12.592297]
[1772622508887,12.18340573,90.109,90.05,14.87990164]
[1772622509083,12.18340573,90.109,90.061,12.592297]
[1772622509790,12.18340573,90.128,90.061,12.592297]
[1772622510490,12.18340573,90.119,90.061,12.592297]
[1772622511184,12.18340573,90.109,90.05,2.28760464]
[1772622511583,12.18340573,90.109,90.05,14.87990164]
[1772622513091,12.18340573,90.109,90.061,12.592297]
[1772622513789,12.18340573,90.129,90.071,12.592297]
[1772622514294,13.75644758,90.157,90.02,1.9321043]
[1772622514295,12.18340573,90.144,90.081,12.592297]
[1772622514588,12.18340573,90.139,90.081,12.592297]
[1772622514991,12.18340573,90.139,90.071,12.592297]
[1772622515192,10.16136448,90.155,90.071,12.592297]
[1772622515193,12.18340573,90.129,90.071,12.592297]
[1772622515496,12.18340573,90.139,90.081,12.592297]
[1772622515694,12.18340573,90.129,90.067,12.592297]
[1772622515994,12.18340573,90.149,90.091,12.592297]
[1772622518600,12.18340573,90.139,90.076,12.592297]
[1772622518996,12.18340573,90.129,90.061,12.592297]
[1772622519196,12.18340573,90.119,90.061,12.592297]
[1772622521105,12.18340573,90.119,90.071,12.592297]
[1772622521803,12.18340573,90.136,90.081,12.592297]
[1772622522005,2.29331813,90.15,90.091,12.592297]
[1772622522206,2.29331813,90.15,90.023,27.30668309]
[1772622522207,12.18340573,90.159,90.101,12.592297]
[1772622524400,12.18340573,90.175,90.12,2.29331813]
[1772622524600,12.18340573,90.175,90.111,12.592297]
[1772622524801,12.18340573,90.175,90.121,12.592297]
[1772622526506,12.18340573,90.196,90.131,12.592297]
[1772622526710,12.18340573,90.189,90.131,12.592297]
[1772622528312,14.47672386,90.18,90.131,12.592297]
[1772622528908,14.47672386,90.18,90.111,12.50512489]
[1772622529113,2.29331813,90.17,90.111,12.50512489]
[1772622529305,14.36500117,90.17,90.111,12.50512489]
[1772622531313,12.07168304,90.184,90.121,12.50512489]
[1772622532009,12.07168304,90.198,90.131,12.50512489]
[1772622534810,12.07168304,90.198,90.151,12.50512489]
[1772622535015,12.07168304,90.213,90.151,12.50512489]
[1772622537012,12.07168304,90.209,90.151,12.50512489]
[1772622538317,2.29331813,90.2,90.151,12.50512489]
[1772622538612,2.29331813,90.17,90.111,12.50512489]
[1772622539111,2.29331813,90.16,90.111,12.50512489]
[1772622540212,2.29331813,90.14,90.092,12.50512489]
[1772622541314,2.29331813,90.15,90.092,12.50512489]
[1772622541613,2.29331813,90.17,90.101,12.50512489]
[1772622543114,14.36500117,90.19,90.13,2.29331813]
[1772622543419,2.29331813,90.2,90.141,12.50512489]
[1772622544120,12.07168304,90.205,90.151,12.50512489]
[1772622547726,12.07168304,90.227,90.151,12.50512489]
[1772622550324,12.07168304,90.227,90.067,176.0]
[1772622550325,12.07168304,90.209,90.111,12.50512489]
[1772622550720,12.07168304,90.189,90.111,12.50512489]
[1772622552227,12.07168304,90.205,90.111,12.50512489]
[1772622559521,11.94324139,90.189,90.111,12.50512489]
[1772622562833,12.56487166,90.169,90.111,12.50512489]
[1772622564534,12.56487166,90.185,90.111,12.50512489]
[1772622566532,2.29200628,90.16,90.111,12.50512489]
[1772622567129,2.29200628,90.17,90.111,12.50512489]
[1772622567836,2.29200628,90.16,90.111,12.50512489]
[1772622569834,2.29200628,90.17,90.111,12.50512489]
[1772622571941,2.29200628,90.18,90.111,12.50512489]
[1772622572437,14.85687794,90.18,90.111,12.50512489]
[1772622574739,14.85687794,90.18,90.121,11.78829274]
[1772622576643,14.85687794,90.18,90.071,27.30668309]
[1772622576644,2.29141585,90.16,90.105,11.78829274]
[1772622581539,10.2974301,90.19,90.092,11.78829274]
[1772622581540,2.29141585,90.14,90.092,11.78829274]
[1772622582444,12.56487166,90.149,90.092,11.78829274]
[1772622582642,12.56487166,90.139,90.092,11.78829274]
[1772622584742,12.56487166,90.158,90.092,11.78829274]
[1772622586346,12.56487166,90.149,90.092,11.78829274]
[1772622588339,12.69432276,90.164,90.111,12.69217642]
[1772622588741,12.69432276,90.164,90.121,12.69217642]
[1772622588941,12.69432276,90.179,90.121,12.69217642]
[1772622590245,20.63076551,90.237,90.097,20.66131445]
[1772622590246,12.69432276,90.193,90.131,12.69217642]
[1772622590450,12.69432276,90.193,90.073,27.30668309]
[1772622590451,12.69432276,90.208,90.141,12.69217642]
[1772622590648,12.69432276,90.208,90.14,2.29141585]
[1772622590649,12.69432276,90.208,90.151,12.69217642]
[1772622591346,2.29141585,90.17,90.121,12.69217642]
[1772622591942,12.69432276,90.194,90.131,12.69217642]
[1772622593549,2.29141585,90.19,90.131,12.69217642]
[1772622593747,12.69432276,90.194,90.131,12.69217642]
[1772622594042,12.69432276,90.194,90.068,27.30668309]
[1772622594043,12.69432276,90.211,90.161,12.69217642]
[1772622598952,12.69432276,90.209,90.15,2.29141585]
[1772622599153,12.69432276,90.209,90.15,14.98359227]
[1772622600555,12.69432276,90.209,90.161,12.69217642]
[1772622605254,12.69432276,90.223,90.161,12.69217642]
[1772622605662,12.69432276,90.239,90.181,12.69217642]
[1772622605855,12.69432276,90.256,90.2,14.98359227]
[1772622606063,12.69432276,90.256,90.2,12.69217642]
[1772622606356,12.69432276,90.256,90.2,14.98359227]
[1772622606660,12.69432276,90.249,90.2,12.69217642]
[1772622607350,2.29141585,90.23,90.181,12.69217642]
[1772622607556,14.98573861,90.23,90.181,12.69217642]
[1772622607757,14.98573861,90.22,90.161,12.69217642]
[1772622607963,14.98573861,90.21,90.161,12.69217642]
[1772622608357,2.29141585,90.2,90.143,12.69217642]
[1772622609158,12.69432276,90.21,90.15,14.98359227]
[1772622609363,12.69432276,90.219,90.161,12.69217642]
[1772622611757,2.29141585,90.23,90.171,12.69217642]
[1772622613166,14.98573861,90.23,90.171,12.69217642]
[1772622614561,2.29141585,90.24,90.171,12.69217642]
[1772622614766,12.69432276,90.239,90.181,12.69217642]
[1772622616466,14.98573861,90.23,90.181,12.69217642]
[1772622616666,14.98573861,90.23,90.161,12.69217642]
[1772622618271,14.98573861,90.23,90.171,12.39572854]
[1772622619370,12.34757413,90.278,90.211,12.39572854]
[1772622619570,12.34757413,90.278,90.23,14.68714439]
[1772622620272,12.34757413,90.278,90.23,12.39572854]
[1772622622073,12.34757413,90.289,90.23,12.39572854]
[1772622622469,12.34757413,90.289,90.23,14.68714439]
[1772622624977,11.77399753,90.306,90.241,11.92069957]
[1772622625368,2.29141585,90.3,90.241,11.92069957]
[1772622625575,11.77399753,90.269,90.221,11.92069957]
[1772622625777,2.29141585,90.27,90.221,11.92069957]
[1772622626074,11.77399753,90.287,90.221,11.92069957]
[1772622626075,2.29141585,90.28,90.221,11.92069957]
[1772622626276,11.77399753,90.287,90.221,11.92069957]
[1772622626576,11.77399753,90.287,90.126,27.30668309]
[1772622626577,14.06541338,90.3,90.231,11.92069957]
[1772622626878,2.29141585,90.29,90.231,11.92069957]
[1772622627573,14.06541338,90.3,90.231,11.92069957]
[1772622627977,14.06541338,90.3,90.241,11.92069957]
[1772622629278,14.06541338,90.29,90.241,11.92069957]
[1772622629476,14.06541338,90.29,90.225,11.92069957]
[1772622630577,2.29141585,90.28,90.225,11.92069957]
[1772622630776,2.29141585,90.27,90.225,11.92069957]
[1772622630977,14.06541338,90.28,90.225,11.92069957]
[1772622632880,11.77399753,90.28,90.23,14.21211542]
[1772622633084,11.77399753,90.295,90.241,11.92069957]
[1772622634084,2.29141585,90.29,90.241,11.92069957]
[1772622634878,2.29141585,90.28,90.221,11.92069957]
[1772622635079,14.06541338,90.28,90.221,11.92069957]
[1772622635682,2.29141585,90.31,90.251,11.92069957]
[1772622635884,11.77399753,90.311,90.251,11.92069957]
[1772622636483,2.28438268,90.31,90.251,11.92069957]
[1772622636679,11.77399753,90.311,90.251,11.92069957]
[1772622638981,2.28438268,90.33,90.271,11.92069957]
[1772622639285,11.77399753,90.334,90.271,11.92069957]
[1772622639685,11.77399753,90.334,90.232,13.66447014]
[1772622639686,2.28438268,90.34,90.281,11.92069957]
[1772622639886,14.05838021,90.35,90.281,11.92069957]
[1772622640277,2.28438268,90.33,90.281,11.92069957]
[1772622640986,2.28438268,90.32,90.281,11.92069957]
[1772622641881,2.28438268,90.32,90.251,11.92069957]
[1772622643689,2.28438268,90.32,90.261,11.92069957]
[1772622647288,14.05838021,90.32,90.261,11.92069957]
[1772622649992,11.77399753,90.32,90.261,11.92069957]
[1772622650792,12.68586887,90.336,90.281,12.26552461]
[1772622650991,2.28438268,90.35,90.29,2.28438268]
[1772622651290,12.68586887,90.349,90.291,12.26552461]
[1772622651496,2.28438268,90.34,90.291,12.26552461]
[1772622652194,12.68586887,90.349,90.291,12.26552461]
[1772622652497,2.28438268,90.34,90.291,12.26552461]
[1772622653300,12.68586887,90.339,90.28,2.28438268]
[1772622653599,12.68586887,90.339,90.276,12.26552461]
[1772622653894,2.28438268,90.33,90.276,12.26552461]
[1772622654096,14.97025155,90.33,90.276,12.26552461]
[1772622654693,12.68586887,90.33,90.276,12.26552461]
[1772622654998,14.97025155,90.33,90.276,12.26552461]
[1772622656093,12.68586887,90.33,90.281,12.26552461]
[1772622656298,14.97025155,90.34,90.281,12.26552461]
[1772622657499,21.95903602,90.376,90.281,12.26552461]
[1772622657500,2.28438268,90.35,90.281,12.26552461]
[1772622658699,12.68586887,90.351,90.291,12.26552461]
[1772622659495,1.92715039,90.378,90.291,12.26552461]
[1772622659496,12.68586887,90.349,90.291,12.26552461]
[1772622660697,12.68586887,90.363,90.311,12.26552461]
[1772622660903,12.68586887,90.378,90.321,12.26552461]
[1772622661202,14.97025155,90.37,90.321,12.26552461]
[1772622661900,14.97025155,90.37,90.305,12.26552461]
[1772622662201,14.97025155,90.35,90.305,12.26552461]
[1772622662398,2.28438268,90.34,90.305,12.26552461]
[1772622662597,2.28438268,90.33,90.281,12.26552461]
[1772622663001,12.68586887,90.339,90.281,12.26552461]
[1772622663598,12.68586887,90.355,90.301,12.26552461]
[1772622664900,12.68586887,90.369,90.311,12.26552461]
[1772622665299,1.9266436,90.408,90.34,2.28438268]
[1772622665495,12.68586887,90.438,90.371,12.26552461]
[1772622665800,12.68586887,90.438,90.38,2.28438268]
[1772622666502,12.68586887,90.438,90.371,12.26552461]
[1772622674007,12.68586887,90.429,90.311,12.26552461]
[1772622676000,12.68586887,90.429,90.331,12.26552461]
[1772622681810,12.12313117,90.419,90.331,12.26552461]
[1772622688618,12.62994855,90.399,90.341,11.9330335]
[1772622691216,12.62994855,90.399,90.351,11.9330335]
[1772622696219,14.91014132,90.39,90.331,11.9330335]
[1772622698523,12.62994855,90.39,90.331,11.9330335]
[1772622700329,12.62994855,90.39,90.34,2.2803124]
[1772622700522,12.62994855,90.409,90.341,11.9330335]
[1772622700728,12.62994855,90.399,90.341,11.9330335]
[1772622702028,12.62994855,90.389,90.341,11.9330335]
[1772622702227,12.62994855,90.389,90.321,11.9330335]
[1772622702627,2.2803124,90.39,90.321,11.9330335]
[1772622702628,12.62994855,90.379,90.321,11.9330335]
[1772622703430,12.62994855,90.394,90.331,11.9330335]
[1772622703629,2.2803124,90.39,90.331,11.9330335]
[1772622703930,12.62994855,90.394,90.341,11.9330335]
[1772622706025,12.62994855,90.389,90.341,11.9330335]
[1772622708129,12.62994855,90.389,90.326,11.9330335]
[1772622708733,12.35813091,90.379,90.326,11.9330335]
[1772622710635,12.35813091,90.379,90.274,27.30668309]
[1772622710636,4.51959214,90.339,90.271,12.44032603]
[1772622710834,2.2803124,90.33,90.271,12.44032603]
[1772622711029,4.51959214,90.339,90.281,12.44032603]
[1772622711232,4.51959214,90.339,90.291,12.44032603]
[1772622711430,2.2803124,90.32,90.271,12.44032603]
[1772622711631,5.24795149,90.329,90.271,12.44032603]
[1772622712037,5.24795149,90.329,90.281,12.44032603]
[1772622712238,5.24787648,90.344,90.291,12.44032603]
[1772622713232,2.2803124,90.34,90.291,12.44032603]
[1772622713433,8.42821389,90.34,90.291,12.44032603]
[1772622713633,6.14790149,90.34,90.291,12.44032603]
[1772622713938,6.15761437,90.369,90.311,12.44032603]
[1772622714239,2.2803124,90.36,90.311,12.44032603]
[1772622715543,6.15761437,90.369,90.311,12.44032603]
[1772622718945,2.2803124,90.36,90.311,12.44032603]
[1772622720247,2.2803124,90.35,90.291,12.44032603]
[1772622720944,2.2803124,90.35,90.189,252.45985136]
[1772622720945,4.56534861,90.389,90.341,12.44032603]
[1772622721449,268.66764562,90.393,90.341,12.44032603]
[1772622721643,4.993275,90.42,90.361,12.44032603]
[1772622722050,2.7129626,90.419,90.361,12.44032603]
[1772622724051,2.51421987,90.449,90.361,12.44032603]
[1772622737553,3.54859926,90.439,90.361,12.44032603]
[1772622738256,3.54797402,90.419,90.346,12.44032603]
[1772622740455,3.54797402,90.419,90.282,20.3494551]
[1772622740456,3.54797402,90.419,90.332,12.08798684]
[1772622740847,8.70718435,90.446,90.291,12.08798684]
[1772622740848,3.5718275,90.399,90.291,12.08798684]
[1772622742360,3.73110248,90.379,90.291,12.08798684]
[1772622744560,2.28104562,90.37,90.321,12.65847435]
[1772622745564,2.28104562,90.35,90.301,12.65847435]
[1772622745767,2.28104562,90.32,90.276,12.65847435]
[1772622746467,2.28104562,90.3,90.241,12.65847435]
[1772622747868,2.28104562,90.32,90.261,12.65847435]
[1772622748069,2.28104562,90.33,90.261,12.65847435]
[1772622748572,3.97366296,90.329,90.261,12.65847435]
[1772622748766,3.97366296,90.329,90.22,5.43755437]
[1772622748767,3.97366296,90.329,90.221,12.65847435]
[1772622749765,3.97582602,90.319,90.221,12.65847435]
[1772622752365,4.276381,90.359,90.221,12.65847435]
[1772622753263,4.276381,90.359,90.241,12.65847435]
[1772622758481,4.276381,90.359,90.251,12.65847435]
[1772622768690,2.28363256,90.33,90.261,12.20178921]
[1772622769090,2.28363256,90.33,90.271,12.20178921]
[1772622769690,7.49611074,90.33,90.271,12.20178921]
[1772622769885,5.21247818,90.319,90.271,12.20178921]
[1772622770192,2.28363256,90.3,90.241,12.20178921]
[1772622770393,2.28363256,90.28,90.241,12.20178921]
[1772622771284,5.21234516,90.299,90.241,12.20178921]
[1772622771486,5.21234516,90.299,90.189,252.45985136]
[1772622771487,2.28363256,90.32,90.261,12.20178921]
[1772622771888,7.48978092,90.32,90.261,12.20178921]
[1772622772088,5.20614836,90.319,90.261,12.20178921]
[1772622773694,2.28363256,90.31,90.261,12.20178921]
[1772622775292,10.20472121,90.377,90.19,176.0]
[1772622775293,4.79086347,90.336,90.271,12.20178921]
[1772622775491,4.79086347,90.336,90.281,12.20178921]
[1772622780498,2.28363256,90.32,90.261,12.20178921]
[1772622780800,7.12752599,90.32,90.261,12.20178921]
[1772622780994,4.84389343,90.338,90.271,12.20178921]
[1772622781297,4.84389343,90.338,90.281,12.20178921]
[1772622788801,4.84395015,90.353,90.291,12.20178921]
[1772622788998,4.84395015,90.369,90.301,12.20178921]
[1772622789197,4.84395015,90.369,90.218,183.22246214]
[1772622789198,4.84395015,90.369,90.311,12.20178921]
[1772622790706,2.28363256,90.38,90.321,12.20178921]
[1772622790899,10.40974942,90.38,90.321,12.20178921]
[1772622791102,2.28363256,90.38,90.321,12.20178921]
[1772622791299,4.82628636,90.384,90.321,12.20178921]
[1772622792309,16.8788436,90.392,90.331,12.20178921]
[1772622792504,16.8788436,90.399,90.331,12.20178921]
[1772622792700,8.75272674,90.399,90.331,12.20178921]
[1772622792903,4.8390967,90.399,90.331,12.20178921]
[1772622794313,4.8520481,90.389,90.331,12.20178921]
[1772622795513,2.28363256,90.38,90.331,12.20178921]
[1772622796016,4.8520481,90.389,90.331,12.20178921]
[1772622798111,2.28363256,90.38,90.331,12.20178921]
[1772622798519,4.8520481,90.389,90.331,12.20178921]
[1772622800619,2.28363256,90.38,90.331,12.20178921]
[1772622801714,4.8520481,90.389,90.331,12.20178921]
[1772622803712,4.51262579,90.405,90.341,12.526524]
[1772622804415,265.69823199,90.407,90.351,12.526524]
[1772622808319,265.69823199,90.407,90.361,12.526524]
[1772622809216,4.4259921,90.389,90.343,12.526524]
[1772622809611,2.28363256,90.38,90.343,12.526524]
[1772622809814,6.71276918,90.38,90.311,12.526524]
[1772622810225,2.28363256,90.37,90.311,12.526524]
[1772622812021,2.28363256,90.38,90.32,2.28363256]
[1772622812214,265.69823199,90.407,90.341,12.526524]
[1772622812417,265.69823199,90.407,90.351,12.526524]
[1772622813025,4.45569175,90.41,90.351,12.526524]
[1772622813218,11.09,90.485,90.351,12.526524]
[1772622813219,10.26416073,90.459,90.36,2.28363256]
[1772622813423,4.37934703,90.496,90.441,12.526524]
[1772622813623,2.28363256,90.51,90.441,12.526524]
[1772622814124,4.39810036,90.516,90.441,12.526524]
[1772622814125,2.28363256,90.49,90.441,12.526524]
[1772622814326,2.28363256,90.5,90.441,12.526524]
[1772622816524,4.39810036,90.516,90.441,12.526524]
[1772622818631,3.06616257,90.509,90.441,12.526524]
[1772622820927,3.06616257,90.509,90.391,12.526524]
[1772622826238,2.71140963,90.489,90.391,12.526524]
[1772622827436,3.81478695,90.537,90.441,12.526524]